[Event "Titled Tuesday Blitz October 04 Early 2022"]
[White "Kravtsiv, Martyn"]
[Black "Bacrot, Etienne"]
[WhiteFideId "14113147"]
[BlackFideId "605506"]
[WhiteElo "2694"]
[BlackElo "2666"]
[Result "1-0"]
[Round "09"]
[TimeControl "180+1"]
[Date "2022.10.04"]
[WhiteClock "0:00:14"]
[BlackClock "0:00:06"]

1. e4 {[%clk 0:03:00]}  c5 {[%clk 0:02:59]} 2. Nf3 {[%clk 0:03:00]}  d6 {[%clk 0:02:59]} 3. Bb5+ {[%clk 0:03:00]}  Bd7 {[%clk 0:02:59]} 4. Bxd7+ {[%clk 0:02:59]}  Nxd7 {[%clk 0:02:59]} 5. O-O {[%clk 0:02:57]}  e6 {[%clk 0:03:00]} 6. b3 {[%clk 0:02:51]}  Be7 {[%clk 0:02:59]} 7. Bb2 {[%clk 0:02:38]}  Bf6 {[%clk 0:02:59]} 8. d4 {[%clk 0:02:38]}  cxd4 {[%clk 0:02:55]} 9. Bxd4 {[%clk 0:02:38]}  Ne7 {[%clk 0:02:51]} 10. c4 {[%clk 0:02:35]}  Nc6 {[%clk 0:02:45]} 11. Bxf6 {[%clk 0:02:34]}  Qxf6 {[%clk 0:02:44]} 12. Na3 {[%clk 0:02:33]}  Rd8 {[%clk 0:02:38]} 13. Nb5 {[%clk 0:02:24]}  O-O {[%clk 0:02:34]} 14. Rc1 {[%clk 0:02:13]}  Nde5 {[%clk 0:02:23]} 15. Ne1 {[%clk 0:02:00]}  Qf4 {[%clk 0:01:43]} 16. Nc3 {[%clk 0:01:37]}  Ng4 {[%clk 0:01:41]} 17. g3 {[%clk 0:01:20]}  Qh6 {[%clk 0:01:41]} 18. Nf3 {[%clk 0:01:21]}  Nce5 {[%clk 0:01:33]} 19. h4 {[%clk 0:01:21]}  f5 {[%clk 0:01:17]} 20. exf5 {[%clk 0:01:19]}  Rxf5 {[%clk 0:01:14]} 21. Nd4 {[%clk 0:01:11]}  Rxf2 {[%clk 0:01:05]} 22. Rxf2 {[%clk 0:01:01]}  Nxf2 {[%clk 0:01:05]} 23. Kxf2 {[%clk 0:01:01]}  Qxc1 {[%clk 0:01:04]} 24. Qxc1 {[%clk 0:00:59]}  Nd3+ {[%clk 0:01:04]} 25. Ke3 {[%clk 0:00:59]}  Nxc1 {[%clk 0:01:04]} 26. Kd2 {[%clk 0:01:00]}  Nxa2 {[%clk 0:00:52]} 27. Nxa2 {[%clk 0:00:59]}  Kf7 {[%clk 0:00:53]} 28. Nc3 {[%clk 0:00:58]}  a6 {[%clk 0:00:53]} 29. Ke3 {[%clk 0:00:57]}  h6 {[%clk 0:00:53]} 30. Nde2 {[%clk 0:00:52]}  Rc8 {[%clk 0:00:43]} 31. Kd4 {[%clk 0:00:51]}  Ke7 {[%clk 0:00:41]} 32. Ne4 {[%clk 0:00:41]}  b5 {[%clk 0:00:39]} 33. c5 {[%clk 0:00:29]}  dxc5+ {[%clk 0:00:35]} 34. Nxc5 {[%clk 0:00:30]}  a5 {[%clk 0:00:34]} 35. Nc3 {[%clk 0:00:30]}  Rd8+ {[%clk 0:00:26]} 36. Ke3 {[%clk 0:00:29]}  Rb8 {[%clk 0:00:21]} 37. Kd4 {[%clk 0:00:29]}  Rf8 {[%clk 0:00:14]} 38. Nxb5 {[%clk 0:00:22]}  Rf3 {[%clk 0:00:14]} 39. g4 {[%clk 0:00:19]}  Rf4+ {[%clk 0:00:12]} 40. Ke5 {[%clk 0:00:19]}  Rxg4 {[%clk 0:00:12]} 41. Nd4 {[%clk 0:00:17]}  Rxh4 {[%clk 0:00:11]} 42. Ncxe6 {[%clk 0:00:18]}  g6 {[%clk 0:00:09]} 43. Nf4 {[%clk 0:00:16]}  Kf7 {[%clk 0:00:08]} 44. Nc6 {[%clk 0:00:16]}  g5 {[%clk 0:00:08]} 45. Nd5 {[%clk 0:00:16]}  Rh3 {[%clk 0:00:08]} 46. Nxa5 {[%clk 0:00:15]}  Kg6 {[%clk 0:00:08]} 47. b4 {[%clk 0:00:16]}  h5 {[%clk 0:00:08]} 48. b5 {[%clk 0:00:16]}  Rh1 {[%clk 0:00:08]} 49. Nc6 {[%clk 0:00:14]}  Re1+ {[%clk 0:00:07]} 50. Kd4 {[%clk 0:00:13]}  h4 {[%clk 0:00:06]} 51. b6 {[%clk 0:00:13]}  h3 {[%clk 0:00:06]} 52. b7 {[%clk 0:00:12]}  Re8 {[%clk 0:00:07]} 53. Nce7+ {[%clk 0:00:13]}  Kh5 {[%clk 0:00:05]} 54. Nf6+ {[%clk 0:00:12]}  Kh4 {[%clk 0:00:05]} 55. Nxe8 {[%clk 0:00:13]}  h2 {[%clk 0:00:05]} 56. Nf5+ {[%clk 0:00:12]}  Kh3 {[%clk 0:00:05]} 57. Ng3 {[%clk 0:00:12]}  Kxg3 {[%clk 0:00:04]} 58. b8=Q+ {[%clk 0:00:12]}  Kg2 {[%clk 0:00:04]} 59. Qb2+ {[%clk 0:00:12]}  Kh3 {[%clk 0:00:05]} 60. Qc3+ {[%clk 0:00:12]}  Kg2 {[%clk 0:00:05]} 61. Qd2+ {[%clk 0:00:12]}  Kh3 {[%clk 0:00:05]} 62. Qe3+ {[%clk 0:00:13]}  Kg2 {[%clk 0:00:06]} 63. Qe2+ {[%clk 0:00:13]}  Kg3 {[%clk 0:00:06]} 64. Qf1 {[%clk 0:00:13]}  g4 {[%clk 0:00:06]} 65. Qh1 {[%clk 0:00:13]}  Kh3 {[%clk 0:00:05]} 66. Ke3 {[%clk 0:00:14]}  g3 {[%clk 0:00:06]} 67. Kf3 {[%clk 0:00:14]}  Kh4 {[%clk 0:00:06]} 68. Qg2 {[%clk 0:00:15]}  Kg5 {[%clk 0:00:06]} 69. Kxg3 {[%clk 0:00:14]} 1-0


[Site "https://www.chess.com"]

[Event "Titled Tuesday Blitz October 04 Early 2022"]
[White "Lazavik, Denis"]
[Black "Nakamura, Hikaru"]
[WhiteFideId "13515110"]
[BlackFideId "2016192"]
[WhiteElo "2437"]
[BlackElo "2909"]
[Result "0-1"]
[Round "09"]
[TimeControl "180+1"]
[Date "2022.10.04"]
[WhiteClock "0:00:03"]
[BlackClock "0:00:08"]

1. d4 {[%clk 0:03:00]}  Nf6 {[%clk 0:02:57]} 2. c4 {[%clk 0:03:00]}  e6 {[%clk 0:02:57]} 3. Nf3 {[%clk 0:03:01]}  d5 {[%clk 0:02:57]} 4. g3 {[%clk 0:03:01]}  Bb4+ {[%clk 0:02:56]} 5. Bd2 {[%clk 0:03:01]}  Be7 {[%clk 0:02:57]} 6. Bg2 {[%clk 0:03:01]}  O-O {[%clk 0:02:57]} 7. O-O {[%clk 0:03:01]}  c6 {[%clk 0:02:58]} 8. Bf4 {[%clk 0:03:00]}  Nh5 {[%clk 0:02:55]} 9. Bc1 {[%clk 0:02:58]}  Nf6 {[%clk 0:02:54]} 10. Qc2 {[%clk 0:02:55]}  b6 {[%clk 0:02:53]} 11. b3 {[%clk 0:02:55]}  Ba6 {[%clk 0:02:54]} 12. Rd1 {[%clk 0:02:50]}  Nbd7 {[%clk 0:02:54]} 13. Bb2 {[%clk 0:02:49]}  Rc8 {[%clk 0:02:52]} 14. Nbd2 {[%clk 0:02:47]}  c5 {[%clk 0:02:52]} 15. e4 {[%clk 0:02:39]}  dxc4 {[%clk 0:02:49]} 16. Nxc4 {[%clk 0:02:08]}  cxd4 {[%clk 0:02:47]} 17. e5 {[%clk 0:02:09]}  b5 {[%clk 0:01:54]} 18. exf6 {[%clk 0:02:07]}  Bxf6 {[%clk 0:01:54]} 19. Nxd4 {[%clk 0:01:52]}  bxc4 {[%clk 0:01:54]} 20. Nc6 {[%clk 0:01:48]}  Qc7 {[%clk 0:01:54]} 21. bxc4 {[%clk 0:01:42]}  Bb7 {[%clk 0:01:51]} 22. Nxa7 {[%clk 0:00:50]}  Bxg2 {[%clk 0:01:33]} 23. Nxc8 {[%clk 0:00:50]}  Ba8 {[%clk 0:01:18]} 24. Nd6 {[%clk 0:00:28]}  Qc6 {[%clk 0:00:51]} 25. Kf1 {[%clk 0:00:27]}  Qg2+ {[%clk 0:00:35]} 26. Ke1 {[%clk 0:00:25]}  Bg5 {[%clk 0:00:33]} 27. h4 {[%clk 0:00:19]}  Bh6 {[%clk 0:00:23]} 28. Qd3 {[%clk 0:00:18]}  Nc5 {[%clk 0:00:13]} 29. Qf1 {[%clk 0:00:15]}  Qh2 {[%clk 0:00:13]} 30. Bd4 {[%clk 0:00:12]}  Bg2 {[%clk 0:00:12]} 31. Bxc5 {[%clk 0:00:10]}  Bxf1 {[%clk 0:00:12]} 32. Kxf1 {[%clk 0:00:11]}  g6 {[%clk 0:00:12]} 33. Ke2 {[%clk 0:00:10]}  Qh3 {[%clk 0:00:12]} 34. Ne4 {[%clk 0:00:09]}  Ra8 {[%clk 0:00:08]} 35. Bd4 {[%clk 0:00:09]}  Bg7 {[%clk 0:00:09]} 36. Bxg7 {[%clk 0:00:07]}  Kxg7 {[%clk 0:00:09]} 37. c5 {[%clk 0:00:08]}  Qf5 {[%clk 0:00:09]} 38. f3 {[%clk 0:00:07]}  Qe5 {[%clk 0:00:10]} 39. Kf2 {[%clk 0:00:05]}  Qb2+ {[%clk 0:00:10]} 40. Ke3 {[%clk 0:00:06]}  Ra3+ {[%clk 0:00:10]} 41. Kf4 {[%clk 0:00:04]}  h5 {[%clk 0:00:09]} 42. Nd6 {[%clk 0:00:02]}  Qf6+ {[%clk 0:00:09]} 43. Ke4 {[%clk 0:00:03]}  Qxf3+ {[%clk 0:00:08]} 44. Kd4 {[%clk 0:00:03]}  Ra4+ {[%clk 0:00:08]} 45. Nc4 {[%clk 0:00:03]}  Qg4+ {[%clk 0:00:08]} 0-1


[Site "https://www.chess.com"]

[Event "Titled Tuesday Blitz October 04 Early 2022"]
[White "Makarian, Rudik"]
[Black "Harsha Bharathakoti"]
[WhiteFideId "44105681"]
[BlackFideId "5078776"]
[WhiteElo "2405"]
[BlackElo "2523"]
[Result "0-1"]
[Round "09"]
[TimeControl "180+1"]
[Date "2022.10.04"]
[WhiteClock "0:01:06"]
[BlackClock "0:01:28"]

1. c4 {[%clk 0:03:00]}  f5 {[%clk 0:02:59]} 2. Nc3 {[%clk 0:02:57]}  Nf6 {[%clk 0:02:59]} 3. d4 {[%clk 0:02:55]}  g6 {[%clk 0:02:59]} 4. Nf3 {[%clk 0:02:52]}  d6 {[%clk 0:02:58]} 5. g3 {[%clk 0:02:53]}  Bg7 {[%clk 0:02:58]} 6. Bg2 {[%clk 0:02:54]}  O-O {[%clk 0:02:59]} 7. O-O {[%clk 0:02:55]}  Qe8 {[%clk 0:02:59]} 8. d5 {[%clk 0:02:52]}  Na6 {[%clk 0:02:59]} 9. Nd4 {[%clk 0:02:46]}  Bd7 {[%clk 0:02:59]} 10. b3 {[%clk 0:02:45]}  c6 {[%clk 0:02:59]} 11. Bb2 {[%clk 0:02:45]}  Nc5 {[%clk 0:02:58]} 12. Qc2 {[%clk 0:02:37]}  Rc8 {[%clk 0:02:58]} 13. Rad1 {[%clk 0:02:37]}  Qf7 {[%clk 0:02:47]} 14. b4 {[%clk 0:02:15]}  Nce4 {[%clk 0:02:31]} 15. Nxe4 {[%clk 0:02:15]}  Nxe4 {[%clk 0:02:26]} 16. Bxe4 {[%clk 0:02:13]}  fxe4 {[%clk 0:02:27]} 17. Qxe4 {[%clk 0:02:14]}  Bh3 {[%clk 0:02:20]} 18. Ne6 {[%clk 0:01:50]}  Bxb2 {[%clk 0:02:04]} 19. Ng5 {[%clk 0:01:50]}  Bf5 {[%clk 0:02:04]} 20. Qh4 {[%clk 0:01:30]}  Qg7 {[%clk 0:02:00]} 21. e4 {[%clk 0:01:20]}  Bd7 {[%clk 0:01:59]} 22. Ne6 {[%clk 0:01:08]}  Bxe6 {[%clk 0:01:59]} 23. dxe6 {[%clk 0:01:09]}  Qf6 {[%clk 0:01:35]} 24. Qg4 {[%clk 0:01:07]}  Qf3 {[%clk 0:01:36]} 25. Qh4 {[%clk 0:01:06]}  Bf6 {[%clk 0:01:35]} 26. Qh6 {[%clk 0:01:06]}  c5 {[%clk 0:01:28]} 0-1


[Site "https://www.chess.com"]

[Event "Titled Tuesday Blitz October 04 Early 2022"]
[White "Martinez Alcantara, Jose Eduardo"]
[Black "Jones, Gawain C B"]
[WhiteFideId "3805662"]
[BlackFideId "409561"]
[WhiteElo "2703"]
[BlackElo "2657"]
[Result "1-0"]
[Round "09"]
[TimeControl "180+1"]
[Date "2022.10.04"]
[WhiteClock "0:00:54"]
[BlackClock "0:00:05"]

1. e4 {[%clk 0:03:00]}  e5 {[%clk 0:02:59]} 2. Nf3 {[%clk 0:03:01]}  Nc6 {[%clk 0:03:00]} 3. Bb5 {[%clk 0:03:02]}  a6 {[%clk 0:02:59]} 4. Ba4 {[%clk 0:03:02]}  Nf6 {[%clk 0:03:00]} 5. O-O {[%clk 0:03:03]}  d6 {[%clk 0:03:00]} 6. d3 {[%clk 0:02:52]}  g6 {[%clk 0:02:59]} 7. c3 {[%clk 0:02:52]}  Bg7 {[%clk 0:02:59]} 8. h3 {[%clk 0:02:53]}  O-O {[%clk 0:03:00]} 9. Re1 {[%clk 0:02:54]}  b5 {[%clk 0:02:55]} 10. Bc2 {[%clk 0:02:51]}  a5 {[%clk 0:02:55]} 11. a4 {[%clk 0:02:43]}  b4 {[%clk 0:02:54]} 12. Nbd2 {[%clk 0:02:44]}  Re8 {[%clk 0:02:46]} 13. Bb3 {[%clk 0:02:40]}  Be6 {[%clk 0:02:43]} 14. Bxe6 {[%clk 0:02:40]}  Rxe6 {[%clk 0:02:43]} 15. Nf1 {[%clk 0:02:38]}  d5 {[%clk 0:02:35]} 16. Bg5 {[%clk 0:02:38]}  Rd6 {[%clk 0:02:16]} 17. Qc2 {[%clk 0:02:24]}  bxc3 {[%clk 0:02:10]} 18. bxc3 {[%clk 0:02:24]}  d4 {[%clk 0:02:00]} 19. cxd4 {[%clk 0:02:24]}  Nxd4 {[%clk 0:01:58]} 20. Nxd4 {[%clk 0:02:24]}  Rxd4 {[%clk 0:01:59]} 21. Ne3 {[%clk 0:02:20]}  Rxd3 {[%clk 0:01:41]} 22. Nd5 {[%clk 0:02:06]}  Rd4 {[%clk 0:01:37]} 23. Qc6 {[%clk 0:02:01]}  Rxd5 {[%clk 0:01:17]} 24. exd5 {[%clk 0:02:00]}  Qxd5 {[%clk 0:01:17]} 25. Qxc7 {[%clk 0:01:56]}  Qd7 {[%clk 0:00:48]} 26. Rac1 {[%clk 0:01:34]}  Qxa4 {[%clk 0:00:34]} 27. Qxe5 {[%clk 0:01:34]}  Nd7 {[%clk 0:00:21]} 28. Qd5 {[%clk 0:01:30]}  Rf8 {[%clk 0:00:16]} 29. Re4 {[%clk 0:01:23]}  Nb6 {[%clk 0:00:15]} 30. Rxa4 {[%clk 0:01:23]}  Nxd5 {[%clk 0:00:15]} 31. Rxa5 {[%clk 0:01:23]}  Nc3 {[%clk 0:00:12]} 32. Kf1 {[%clk 0:01:21]}  Ne4 {[%clk 0:00:08]} 33. Be3 {[%clk 0:01:20]}  h5 {[%clk 0:00:08]} 34. Ra4 {[%clk 0:01:20]}  Nc3 {[%clk 0:00:06]} 35. Rc4 {[%clk 0:01:19]}  Nd5 {[%clk 0:00:06]} 36. Bg5 {[%clk 0:01:18]}  Bf6 {[%clk 0:00:04]} 37. Bxf6 {[%clk 0:01:13]}  Nxf6 {[%clk 0:00:05]} 38. Rc8 {[%clk 0:01:14]}  Rxc8 {[%clk 0:00:05]} 39. Rxc8+ {[%clk 0:01:15]}  Kg7 {[%clk 0:00:06]} 40. Ra8 {[%clk 0:01:16]}  Nd5 {[%clk 0:00:06]} 41. Ke2 {[%clk 0:01:17]}  Nf4+ {[%clk 0:00:06]} 42. Kf3 {[%clk 0:01:17]}  Ne6 {[%clk 0:00:07]} 43. Ra5 {[%clk 0:01:16]}  Kf6 {[%clk 0:00:07]} 44. Ke3 {[%clk 0:01:17]}  Kg7 {[%clk 0:00:06]} 45. Ke4 {[%clk 0:01:16]}  Kf6 {[%clk 0:00:07]} 46. Rb5 {[%clk 0:01:17]}  Ng5+ {[%clk 0:00:07]} 47. Ke3 {[%clk 0:01:16]}  Ne6 {[%clk 0:00:07]} 48. h4 {[%clk 0:01:16]}  Kg7 {[%clk 0:00:08]} 49. Ke4 {[%clk 0:01:16]}  Kf6 {[%clk 0:00:08]} 50. Ra5 {[%clk 0:01:17]}  Nf8 {[%clk 0:00:07]} 51. Ra6+ {[%clk 0:01:17]}  Ne6 {[%clk 0:00:07]} 52. g3 {[%clk 0:01:17]}  Ke7 {[%clk 0:00:04]} 53. Rb6 {[%clk 0:01:13]}  Nc5+ {[%clk 0:00:03]} 54. Kd4 {[%clk 0:01:09]}  Nd7 {[%clk 0:00:03]} 55. Ra6 {[%clk 0:01:08]}  Nf6 {[%clk 0:00:03]} 56. f3 {[%clk 0:01:07]}  Ne8 {[%clk 0:00:04]} 57. Ke5 {[%clk 0:01:07]}  Kf8 {[%clk 0:00:04]} 58. Ra8 {[%clk 0:01:06]}  Ke7 {[%clk 0:00:05]} 59. Ra7+ {[%clk 0:01:07]}  Kf8 {[%clk 0:00:05]} 60. Rb7 {[%clk 0:01:07]}  Kg7 {[%clk 0:00:05]} 61. g4 {[%clk 0:01:04]}  Nf6 {[%clk 0:00:05]} 62. g5 {[%clk 0:01:02]}  Ne8 {[%clk 0:00:04]} 63. f4 {[%clk 0:01:03]}  Kf8 {[%clk 0:00:03]} 64. Ra7 {[%clk 0:01:00]}  Kg8 {[%clk 0:00:03]} 65. Rb7 {[%clk 0:01:00]}  Kg7 {[%clk 0:00:02]} 66. Re7 {[%clk 0:01:00]}  Kf8 {[%clk 0:00:03]} 67. Rd7 {[%clk 0:01:01]}  Ng7 {[%clk 0:00:03]} 68. Rb7 {[%clk 0:00:57]}  Ne8 {[%clk 0:00:03]} 69. f5 {[%clk 0:00:57]}  gxf5 {[%clk 0:00:04]} 70. Rb8 {[%clk 0:00:56]}  Ke7 {[%clk 0:00:04]} 71. Kxf5 {[%clk 0:00:56]}  Nd6+ {[%clk 0:00:04]} 72. Kf4 {[%clk 0:00:56]}  Ke6 {[%clk 0:00:05]} 73. Rh8 {[%clk 0:00:56]}  Nf5 {[%clk 0:00:04]} 74. Rxh5 {[%clk 0:00:56]}  Ne7 {[%clk 0:00:04]} 75. Rh6+ {[%clk 0:00:56]}  Ng6+ {[%clk 0:00:05]} 76. Ke4 {[%clk 0:00:55]}  Ke7 {[%clk 0:00:05]} 77. h5 {[%clk 0:00:56]}  Nf8 {[%clk 0:00:06]} 78. Ra6 {[%clk 0:00:56]}  Ne6 {[%clk 0:00:06]} 79. Kf5 {[%clk 0:00:57]}  Nd4+ {[%clk 0:00:06]} 80. Kg4 {[%clk 0:00:58]}  Kf8 {[%clk 0:00:05]} 81. h6 {[%clk 0:00:56]}  Kg8 {[%clk 0:00:06]} 82. Ra7 {[%clk 0:00:56]}  Ne6 {[%clk 0:00:05]} 83. Kf5 {[%clk 0:00:55]}  Nf8 {[%clk 0:00:04]} 84. Ra8 {[%clk 0:00:55]}  f6 {[%clk 0:00:05]} 85. g6 {[%clk 0:00:54]} 1-0


[Site "https://www.chess.com"]

[Event "Titled Tuesday Blitz October 04 Early 2022"]
[White "Ohanyan, Emin"]
[Black "Eljanov, Pavel"]
[WhiteFideId "13312022"]
[BlackFideId "14102951"]
[WhiteElo "2302"]
[BlackElo "2601"]
[Result "1-0"]
[Round "09"]
[TimeControl "180+1"]
[Date "2022.10.04"]
[WhiteClock "0:00:06"]
[BlackClock "0:00:04"]

1. e4 {[%clk 0:03:00]}  c6 {[%clk 0:02:59]} 2. d4 {[%clk 0:03:00]}  d5 {[%clk 0:03:00]} 3. Nc3 {[%clk 0:03:01]}  dxe4 {[%clk 0:02:59]} 4. Nxe4 {[%clk 0:03:02]}  Nf6 {[%clk 0:03:00]} 5. Nxf6+ {[%clk 0:03:03]}  exf6 {[%clk 0:03:00]} 6. c3 {[%clk 0:03:02]}  Bd6 {[%clk 0:03:00]} 7. Bd3 {[%clk 0:03:02]}  O-O {[%clk 0:02:59]} 8. Qc2 {[%clk 0:03:03]}  Re8+ {[%clk 0:02:59]} 9. Ne2 {[%clk 0:03:03]}  h5 {[%clk 0:02:59]} 10. O-O {[%clk 0:02:44]}  Nd7 {[%clk 0:02:51]} 11. Ng3 {[%clk 0:02:38]}  Qc7 {[%clk 0:02:45]} 12. h3 {[%clk 0:02:33]}  Bxg3 {[%clk 0:02:15]} 13. fxg3 {[%clk 0:02:34]}  Nf8 {[%clk 0:02:15]} 14. Bf4 {[%clk 0:02:30]}  Qa5 {[%clk 0:02:11]} 15. Rae1 {[%clk 0:02:13]}  Be6 {[%clk 0:02:08]} 16. a3 {[%clk 0:01:56]}  b5 {[%clk 0:02:06]} 17. Bd6 {[%clk 0:01:50]}  Rad8 {[%clk 0:01:57]} 18. Bb4 {[%clk 0:01:43]}  Qc7 {[%clk 0:01:55]} 19. Qf2 {[%clk 0:01:30]}  Nd7 {[%clk 0:01:50]} 20. a4 {[%clk 0:01:00]}  a5 {[%clk 0:01:45]} 21. Ba3 {[%clk 0:00:58]}  bxa4 {[%clk 0:01:44]} 22. c4 {[%clk 0:00:49]}  Nb6 {[%clk 0:01:39]} 23. Rc1 {[%clk 0:00:49]}  Nc8 {[%clk 0:01:20]} 24. d5 {[%clk 0:00:47]}  Bd7 {[%clk 0:01:17]} 25. g4 {[%clk 0:00:25]}  Qe5 {[%clk 0:00:36]} 26. Rce1 {[%clk 0:00:22]}  Qg5 {[%clk 0:00:36]} 27. b4 {[%clk 0:00:11]}  axb3 {[%clk 0:00:34]} 28. Bc1 {[%clk 0:00:11]}  Qxc1 {[%clk 0:00:05]} 29. Rxc1 {[%clk 0:00:10]}  cxd5 {[%clk 0:00:05]} 30. cxd5 {[%clk 0:00:08]}  Nd6 {[%clk 0:00:05]} 31. Qh4 {[%clk 0:00:08]}  Re3 {[%clk 0:00:04]} 32. Bb1 {[%clk 0:00:06]} 1-0


[Site "https://www.chess.com"]

[Event "Titled Tuesday Blitz October 04 Early 2022"]
[White "Pakleza, Zbigniew"]
[Black "Batsuren, Dambasuren"]
[WhiteFideId "1119290"]
[BlackFideId "4902920"]
[WhiteElo "2411"]
[BlackElo "2422"]
[Result "1/2-1/2"]
[Round "09"]
[TimeControl "180+1"]
[Date "2022.10.04"]
[WhiteClock "0:00:10"]
[BlackClock "0:00:08"]

1. d4 {[%clk 0:03:00]}  Nf6 {[%clk 0:02:59]} 2. Nf3 {[%clk 0:03:01]}  e6 {[%clk 0:03:00]} 3. Bf4 {[%clk 0:03:01]}  b6 {[%clk 0:02:59]} 4. e3 {[%clk 0:03:01]}  Bb7 {[%clk 0:03:00]} 5. h3 {[%clk 0:03:02]}  c5 {[%clk 0:02:58]} 6. c3 {[%clk 0:03:02]}  cxd4 {[%clk 0:02:58]} 7. cxd4 {[%clk 0:03:02]}  Be7 {[%clk 0:02:57]} 8. Nc3 {[%clk 0:03:01]}  O-O {[%clk 0:02:57]} 9. Bd3 {[%clk 0:03:02]}  Nc6 {[%clk 0:02:56]} 10. a3 {[%clk 0:03:00]}  h6 {[%clk 0:02:53]} 11. O-O {[%clk 0:03:00]}  d5 {[%clk 0:02:51]} 12. Qa4 {[%clk 0:02:55]}  a6 {[%clk 0:02:47]} 13. Rfc1 {[%clk 0:02:55]}  b5 {[%clk 0:02:45]} 14. Qd1 {[%clk 0:02:55]}  Bd6 {[%clk 0:02:40]} 15. Bxd6 {[%clk 0:02:50]}  Qxd6 {[%clk 0:02:41]} 16. a4 {[%clk 0:02:50]}  bxa4 {[%clk 0:02:08]} 17. Nxa4 {[%clk 0:02:49]}  Nb4 {[%clk 0:02:04]} 18. Nc5 {[%clk 0:02:38]}  Rfb8 {[%clk 0:02:04]} 19. Bf1 {[%clk 0:02:26]}  a5 {[%clk 0:01:57]} 20. Ra3 {[%clk 0:02:20]}  Nd7 {[%clk 0:01:45]} 21. Nxd7 {[%clk 0:02:13]}  Qxd7 {[%clk 0:01:46]} 22. Ne5 {[%clk 0:02:14]}  Qd8 {[%clk 0:01:37]} 23. Rc5 {[%clk 0:01:55]}  Rc8 {[%clk 0:01:31]} 24. Qh5 {[%clk 0:01:45]}  Qe7 {[%clk 0:00:43]} 25. Raxa5 {[%clk 0:01:29]}  Rxa5 {[%clk 0:00:44]} 26. Rxa5 {[%clk 0:01:29]}  Rc1 {[%clk 0:00:39]} 27. Ra7 {[%clk 0:01:30]}  Rxf1+ {[%clk 0:00:29]} 28. Kxf1 {[%clk 0:01:29]}  Ba6+ {[%clk 0:00:30]} 29. Rxa6 {[%clk 0:01:29]}  Nxa6 {[%clk 0:00:31]} 30. Kg1 {[%clk 0:01:25]}  Qb7 {[%clk 0:00:30]} 31. Qe2 {[%clk 0:01:21]}  Nb4 {[%clk 0:00:31]} 32. Qd2 {[%clk 0:01:17]}  f6 {[%clk 0:00:30]} 33. Nd7 {[%clk 0:01:10]}  Qb5 {[%clk 0:00:12]} 34. Nc5 {[%clk 0:01:05]}  e5 {[%clk 0:00:13]} 35. Qc3 {[%clk 0:00:58]}  e4 {[%clk 0:00:13]} 36. Qb3 {[%clk 0:00:54]}  Qa5 {[%clk 0:00:10]} 37. Nxe4 {[%clk 0:00:49]}  Qa1+ {[%clk 0:00:04]} 38. Kh2 {[%clk 0:00:50]}  Qe1 {[%clk 0:00:05]} 39. Nc3 {[%clk 0:00:30]}  Nd3 {[%clk 0:00:05]} 40. Qxd5+ {[%clk 0:00:26]}  Kf8 {[%clk 0:00:05]} 41. Qa8+ {[%clk 0:00:22]}  Kf7 {[%clk 0:00:05]} 42. Qd5+ {[%clk 0:00:22]}  Kf8 {[%clk 0:00:05]} 43. Ne4 {[%clk 0:00:20]}  Nxf2 {[%clk 0:00:05]} 44. Qd8+ {[%clk 0:00:17]}  Kf7 {[%clk 0:00:05]} 45. Qd7+ {[%clk 0:00:17]}  Kf8 {[%clk 0:00:05]} 46. Nd6 {[%clk 0:00:08]}  Kg8 {[%clk 0:00:06]} 47. Qe6+ {[%clk 0:00:06]}  Kh7 {[%clk 0:00:06]} 48. Qf5+ {[%clk 0:00:05]}  Kg8 {[%clk 0:00:07]} 49. Ne4 {[%clk 0:00:05]}  Nd1 {[%clk 0:00:04]} 50. Qe6+ {[%clk 0:00:03]}  Kh7 {[%clk 0:00:04]} 51. Qf5+ {[%clk 0:00:04]}  Kg8 {[%clk 0:00:04]} 52. Qe6+ {[%clk 0:00:04]}  Kh8 {[%clk 0:00:05]} 53. Qe8+ {[%clk 0:00:04]}  Kh7 {[%clk 0:00:05]} 54. Qf7 {[%clk 0:00:03]}  Kh8 {[%clk 0:00:05]} 55. Qe8+ {[%clk 0:00:03]}  Kh7 {[%clk 0:00:06]} 56. Qh5 {[%clk 0:00:03]}  Nxe3 {[%clk 0:00:04]} 57. Ng3 {[%clk 0:00:03]}  Qd2 {[%clk 0:00:03]} 58. Qf3 {[%clk 0:00:03]}  Qxd4 {[%clk 0:00:02]} 59. b3 {[%clk 0:00:03]}  f5 {[%clk 0:00:01]} 60. h4 {[%clk 0:00:02]}  Qe5 {[%clk 0:00:02]} 61. Kh3 {[%clk 0:00:02]}  g6 {[%clk 0:00:02]} 62. h5 {[%clk 0:00:02]}  gxh5 {[%clk 0:00:02]} 63. Nxh5 {[%clk 0:00:02]}  Kg6 {[%clk 0:00:02]} 64. Nf4+ {[%clk 0:00:02]}  Kf6 {[%clk 0:00:02]} 65. Nd3 {[%clk 0:00:03]}  Qe4 {[%clk 0:00:02]} 66. Qxe4 {[%clk 0:00:02]}  fxe4 {[%clk 0:00:02]} 67. Nc5 {[%clk 0:00:03]}  Ke5 {[%clk 0:00:03]} 68. b4 {[%clk 0:00:03]}  Nd5 {[%clk 0:00:04]} 69. b5 {[%clk 0:00:03]}  e3 {[%clk 0:00:04]} 70. Kg3 {[%clk 0:00:03]}  Kd6 {[%clk 0:00:02]} 71. Nd3 {[%clk 0:00:02]}  Nc3 {[%clk 0:00:01]} 72. b6 {[%clk 0:00:02]}  Kc6 {[%clk 0:00:02]} 73. Kf3 {[%clk 0:00:02]}  e2 {[%clk 0:00:03]} 74. Kf2 {[%clk 0:00:02]}  Kxb6 {[%clk 0:00:03]} 75. Nf4 {[%clk 0:00:03]}  Kc5 {[%clk 0:00:04]} 76. Nxe2 {[%clk 0:00:04]}  Nxe2 {[%clk 0:00:04]} 77. Kxe2 {[%clk 0:00:05]}  Kd4 {[%clk 0:00:05]} 78. Kf3 {[%clk 0:00:06]}  Ke5 {[%clk 0:00:06]} 79. Kg4 {[%clk 0:00:06]}  Kf6 {[%clk 0:00:07]} 80. Kh5 {[%clk 0:00:07]}  Kg7 {[%clk 0:00:07]} 81. g4 {[%clk 0:00:08]}  Kh7 {[%clk 0:00:07]} 82. g5 {[%clk 0:00:09]}  hxg5 {[%clk 0:00:08]} 83. Kxg5 {[%clk 0:00:10]} 1/2-1/2


[Site "https://www.chess.com"]